bitfinex-derivatives/quotes_ETHF0:USTF0_20250403
["timestamp","ask_amount","ask_price","bid_price","bid_amount"]
[1743662383566,1.10540323,1823.0,1822.9,3.94794]
[1743662385061,1.10540323,1823.0,1822.9,3.19764]
[1743662385258,3.28810323,1823.0,1822.9,3.19764]
[1743662386271,2.19092323,1823.0,1822.9,3.19764]
[1743662386470,3.28810323,1823.0,1822.9,3.19764]
[1743662387669,0.00822323,1823.0,1822.9,3.19764]
[1743662399376,2.8954,1823.7,1823.6,2.52131]
[1743662400571,0.00822323,1823.8,1823.7,1.09675]
[1743662400776,0.00822323,1823.8,1823.7,6.07615]
[1743662401267,1.4328,1824.2,1823.7,4.9794]
[1743662401472,1.09636,1824.4,1824.3,1.09639]
[1743662401670,2.1178,1824.4,1824.3,1.09639]
[1743662402375,1.09631,1824.5,1824.4,1.09629]
[1743662402576,1.39632323,1824.5,1824.4,1.09629]
[1743662402777,0.00822323,1824.5,1824.4,4.30409]
[1743662402978,0.00822323,1824.5,1824.4,5.70649]
[1743662403274,25.25599013,1825.5,1824.5,5.4812]
[1743662403482,1.3881,1825.3,1825.2,1.09585]
[1743662403876,25.25599013,1825.5,1825.2,2.73964]
[1743662404072,25.25599013,1825.5,1825.4,1.09573]
[1743662404577,25.25599013,1825.5,1825.4,2.46953]
[1743662405377,1.39632323,1825.6,1825.5,1.09567]
[1743662405582,1.39632323,1825.6,1825.3,3.58122323]
[1743662405772,1.09573,1825.4,1825.3,0.00822323]
[1743662409981,2.73958,1825.3,1824.8,3.2078]
[1743662410280,1.09615,1824.7,1824.5,2.48854]
[1743662410486,1.09615,1824.7,1824.6,1.09621]
[1743662411077,0.7002,1824.9,1824.5,7.34074]
[1743662411282,1.79626,1824.9,1824.7,1.09612]
[1743662411478,0.7295,1825.2,1824.7,6.7848]
[1743662411673,1.09589,1825.2,1825.0,1.09593]
[1743662411879,1.09589,1825.2,1825.1,1.09591]
[1743662412077,1.79604,1825.3,1825.1,1.09591]
[1743662412278,1.09585,1825.2,1825.1,1.09591]
[1743662418284,1.09591,1825.1,1825.0,4.67194]
[1743662418583,1.09609,1824.8,1824.7,4.66912]
[1743662421490,1.09621,1824.6,1824.5,5.39063323]
[1743662421784,1.0962,1824.7,1824.6,1.09619]
[1743662422286,1.09621,1824.6,1824.5,1.10444323]
[1743662426883,1.09621,1824.6,1824.5,0.00822323]
[1743662427090,1.09621,1824.6,1824.5,1.10449323]
[1743662429790,1.09621,1824.6,1824.5,0.00822323]
[1743662430386,1.09621,1824.6,1824.5,1.10449323]
[1743662435804,1.09621,1824.6,1824.5,0.00822323]
[1743662435998,1.82731,1824.6,1824.5,0.00822323]
[1743662436197,0.7311,1824.6,1824.0,57.608]
[1743662436393,1.09659,1824.0,1823.9,1.09659]
[1743662436594,1.09659,1824.0,1823.9,1.09657]
[1743662437199,2.50959,1824.0,1823.9,2.52457]
[1743662438003,2.50959,1824.0,1823.8,0.00822323]
[1743662438004,2.50962,1824.0,1823.8,0.00822323]
[1743662438300,1.09662,1824.0,1823.9,1.09663]
[1743662438499,0.72932323,1824.1,1824.0,1.09657]
[1743662438691,0.00822323,1824.1,1824.0,1.09657]
[1743662438896,0.00822323,1824.1,1824.0,5.82037]
[1743662442808,2.51374,1824.6,1824.2,2.74103]
[1743662443009,0.7179,1824.6,1824.5,1.09627]
[1743662443210,0.7179,1824.6,1824.4,1.09628]
[1743662443394,1.09629,1824.5,1824.4,2.51618]
[1743662443594,2.51399,1824.5,1824.4,2.51618]
[1743662445310,1.4177,1824.5,1824.4,2.51618]
[1743662446108,2.51397,1824.5,1824.4,2.51618]
[1743662446607,1.4177,1824.5,1824.4,2.51618]
[1743662447202,2.51397,1824.5,1824.4,2.51618]
[1743662447408,1.09641,1824.3,1824.2,1.09639]
[1743662447911,1.09641,1824.3,1824.2,2.60819]
[1743662448112,2.48891,1824.3,1824.2,2.60819]
[1743662448511,2.48891,1824.3,1824.2,1.09639]
[1743662449807,1.3925,1824.3,1824.2,1.09639]
[1743662450614,1.3925,1824.3,1824.1,2.60826]
[1743662450818,1.09657,1824.1,1824.0,1.09655]
[1743662451721,2.55427,1824.1,1824.0,1.09655]
[1743662452723,1.09657,1824.0,1823.9,4.30441]
[1743662453023,3.25407,1824.0,1823.9,3.2078]
[1743662453614,3.25407,1824.0,1823.9,4.30443]
[1743662456427,1.09663,1823.9,1823.8,0.00822323]
[1743662456720,5.74753,1823.9,1823.8,0.00822323]
[1743662461626,0.7127,1824.0,1823.9,1.09663]
[1743662461823,2.1605,1824.0,1823.9,1.09663]
[1743662462027,4.2493,1824.2,1823.8,2.14012323]
[1743662462028,5.34579,1824.2,1823.8,2.14012323]
[1743662462228,6.85289,1824.2,1824.1,1.09651]
[1743662462526,3.28989,1824.2,1824.1,1.09651]
[1743662462927,1.81604,1824.3,1824.2,1.09645]
[1743662463528,3.32314,1824.3,1824.2,1.09645]
[1743662464727,1.09655,1824.1,1824.0,1.09653]
[1743662466835,1.09657,1824.0,1823.9,2.60449]
[1743662467029,1.09663,1823.9,1823.8,0.00822323]
[1743662467329,2.52173,1823.9,1823.8,1.10491323]
[1743662467522,3.97733,1823.9,1823.8,1.10491323]
[1743662469933,3.97733,1823.9,1823.8,0.00822323]
[1743662472338,1.09663,1823.9,1823.8,1.10491323]
[1743662472531,1.09654,1824.1,1824.0,1.09657]
[1743662472738,2.51144,1824.1,1824.0,1.09657]
[1743662473736,1.09663,1823.9,1823.8,1.10489323]
[1743662475131,1.78263,1823.9,1823.8,1.10489323]
[1743662476337,0.686,1823.9,1823.8,1.10489323]
[1743662476634,1.78263,1823.9,1823.8,2.47969323]
[1743662476827,3.23323,1823.9,1823.8,2.47969323]
[1743662479926,3.23323,1823.9,1823.5,6.69614]
[1743662479927,1.09681,1823.6,1823.5,5.05083]
[1743662480124,1.09681,1823.6,1823.5,2.53063]
[1743662484834,1.09687,1823.5,1823.4,3.21602323]
[1743662485040,1.09687,1823.5,1823.4,4.58682323]
[1743662486037,0.72262323,1823.6,1823.4,4.58682323]
[1743662486038,1.81948323,1823.6,1823.5,1.09687]
[1743662486238,1.81948323,1823.6,1823.5,2.46767]
[1743662486435,3.27048323,1823.6,1823.5,2.46767]
[1743662490548,0.00822323,1823.6,1823.5,2.46767]
[1743662490737,0.00822323,1823.6,1823.5,3.17447]
[1743662492340,1.10503323,1823.6,1823.5,3.17447]
[1743662493347,0.00822323,1823.6,1823.5,3.17447]
[1743662493646,1.10503323,1823.6,1823.5,3.17447]
[1743662493846,2.50783323,1823.6,1823.5,3.17447]
[1743662494040,2.50783323,1823.6,1823.4,3.21602323]
[1743662494041,1.09687,1823.5,1823.4,3.21602323]
[1743662494240,1.09687,1823.5,1823.4,0.00822323]
[1743662494241,3.19807,1823.5,1823.4,0.00822323]
[1743662497044,3.19807,1823.5,1823.4,1.10515323]
[1743662497841,3.19807,1823.5,1823.4,0.00822323]
[1743662498742,3.19807,1823.5,1823.4,1.10515323]
[1743662499544,3.19807,1823.5,1823.4,0.00822323]
[1743662510753,6.76107,1823.5,1823.4,0.00822323]
[1743662511960,3.19807,1823.5,1823.4,1.10515323]
[1743662512160,2.49967,1823.5,1823.4,2.60005323]
[1743662512358,0.00822323,1823.6,1823.5,1.09687]
[1743662512658,0.00822323,1823.6,1823.5,2.59177]
[1743662516354,1.10503323,1823.6,1823.5,2.59177]
[1743662516755,0.00822323,1823.6,1823.5,2.59177]
[1743662518557,1.10503323,1823.6,1823.5,2.59177]
[1743662518865,0.00822323,1823.6,1823.5,2.59177]
[1743662521865,1.10503323,1823.6,1823.5,2.59177]
[1743662522763,0.00822323,1823.6,1823.5,2.59177]
[1743662523769,1.10503323,1823.6,1823.5,2.59177]
[1743662524669,2.57363323,1823.6,1823.5,2.59177]
[1743662526268,3.26453323,1823.6,1823.5,2.59177]
[1743662526765,1.09687,1823.5,1823.4,0.00822323]
[1743662526969,2.47347,1823.5,1823.4,0.00822323]
[1743662527465,2.47347,1823.5,1823.4,1.10515323]
[1743662527658,2.47347,1823.5,1823.4,2.54545323]
[1743662530769,2.47347,1823.5,1823.4,0.00822323]
[1743662532666,1.09712,1823.1,1823.0,0.728]
[1743662532865,1.09712,1823.1,1823.0,1.82513]
[1743662533270,1.09718,1823.0,1822.9,1.5152]
[1743662533470,2.49098,1823.0,1822.9,1.5152]
[1743662534075,1.3938,1823.0,1822.9,2.61244]
[1743662534370,1.79566,1823.1,1823.0,1.09718]
[1743662534576,1.79566,1823.1,1823.0,2.61238]
[1743662535169,3.29436,1823.1,1823.0,2.61238]
[1743662535971,3.29436,1823.1,1823.0,1.5152]
[1743662536482,3.29436,1823.1,1823.0,2.61238]
[1743662539381,0.7018,1823.2,1823.1,1.09712]
[1743662539676,0.7018,1823.2,1823.1,3.33542]
[1743662540977,6.87798029,1823.9,1823.1,10.22377]
[1743662541276,1.10504323,1823.6,1823.5,1.09687]
[1743662541466,0.00822323,1823.6,1823.5,1.09687]
[1743662541666,0.00822323,1823.6,1823.5,2.60277]
[1743662541874,1.40162323,1823.6,1823.5,2.60277]
[1743662542665,0.00822323,1823.6,1823.5,2.60277]
[1743662542862,32.02579013,1824.5,1824.1,1.09648]
[1743662543067,1.3934,1824.2,1824.1,1.09648]
[1743662543267,1.09663,1823.9,1823.7,3.562]
[1743662543467,1.3934,1823.8,1823.7,4.65875]
[1743662543675,2.1414,1823.8,1823.7,1.09675]
[1743662544581,2.1414,1823.8,1823.7,2.46935]
[1743662550982,1.3934,1823.8,1823.7,2.46935]
[1743662554581,1.09675,1823.7,1823.6,0.00822323]
[1743662554787,1.82835,1823.7,1823.6,0.00822323]
[1743662555385,0.7316,1823.7,1823.6,1.10501323]
[1743662555881,2.1515,1823.7,1823.6,2.52511323]
[1743662559783,1.09674,1823.8,1823.6,1.42832323]
[1743662559992,4.01640323,1823.9,1823.8,1.09669]
[1743662560180,2.16302323,1823.9,1823.8,1.09669]
[1743662560381,0.00822323,1823.9,1823.8,2.50389]
[1743662561989,1.42372323,1823.9,1823.8,2.50389]
[1743662568095,0.00822323,1823.9,1823.8,2.50389]
[1743662568299,2.2389,1824.2,1824.1,1.09651]
[1743662568893,1.83908,1824.4,1824.3,1.09639]
[1743662569082,3.36383,1824.3,1824.2,1.09641]
[1743662569894,0.75092323,1824.4,1824.3,1.09639]
[1743662570291,0.75092323,1824.4,1824.3,1.81679]
[1743662570493,0.75092323,1824.4,1824.3,3.33319]
[1743662570494,2.26612323,1824.4,1824.3,3.33319]
[1743662571493,3.36245323,1824.4,1824.3,3.33319]
[1743662571692,3.36245323,1824.4,1824.3,2.61279]
[1743662572492,2.26612323,1824.4,1824.3,2.61279]
[1743662572697,0.00822323,1824.4,1824.3,6.17379]
[1743662572890,0.00822323,1824.4,1824.3,6.91179]
[1743662573787,1.52822323,1824.4,1824.3,4.65739]
[1743662573988,2.62455323,1824.4,1824.3,4.65739]
[1743662576190,1.09657,1824.1,1824.0,1.09654]
[1743662576498,1.09662,1824.0,1823.9,1.0966]
[1743662576691,3.20212,1824.0,1823.9,1.0966]
[1743662578895,1.09663,1823.9,1823.8,4.30445]
[1743662579097,3.23273,1823.9,1823.8,4.30445]
[1743662579588,4.87769,1823.9,1823.6,3.21602323]
[1743662579793,1.4366,1823.8,1823.7,1.09675]
[1743662579989,1.4366,1823.8,1823.7,3.27385]
[1743662580791,2.53329,1823.8,1823.7,3.27385]
[1743662580993,1.4366,1823.8,1823.7,3.27385]
[1743662581193,2.53329,1823.8,1823.7,3.27385]
[1743662584003,1.79617,1823.9,1823.8,1.09669]
[1743662584193,1.79617,1823.9,1823.8,2.55009]
[1743662584805,1.09667,1823.9,1823.8,2.55009]
[1743662587693,2.2159,1824.0,1823.9,1.09663]
[1743662587901,0.00822323,1824.4,1824.3,1.09639]
[1743662588097,3.98625323,1824.4,1824.3,1.09639]
[1743662588899,2.88992323,1824.4,1824.3,1.09639]
[1743662589799,3.98625323,1824.4,1824.3,1.09639]
[1743662590506,3.98625323,1824.4,1824.2,1.386]
[1743662590507,1.09645,1824.3,1824.2,1.09643]
[1743662590708,2.55535,1824.3,1824.2,1.09643]
[1743662592006,1.4589,1824.3,1824.2,2.50943]
[1743662592608,2.55529,1824.3,1824.2,2.50943]
[1743662595216,2.55529,1824.3,1824.1,4.30427]
[1743662595507,2.55529,1824.3,1823.9,3.42725]
[1743662595508,1.4886,1824.2,1823.9,2.1536]
[1743662595707,2.58505,1824.2,1824.1,1.09651]
[1743662595907,1.4886,1824.2,1824.1,1.09651]
[1743662596299,2.58505,1824.2,1824.1,1.09651]
[1743662597907,1.4886,1824.2,1824.1,1.09651]
[1743662598110,6.13400323,1824.4,1824.3,1.09639]
[1743662598413,6.13400323,1824.4,1824.2,2.56651]
[1743662598414,1.09639,1824.3,1824.2,2.56651]
[1743662598604,2.48519,1824.3,1824.2,2.56651]
[1743662600407,1.47762323,1824.4,1824.2,2.56651]
[1743662600408,1.47762323,1824.4,1824.3,1.09639]
[1743662600611,0.00822323,1824.4,1824.3,5.81829]
[1743662600912,1.04250378,1824.9,1824.3,5.81829]
[1743662600913,4.98386378,1824.9,1824.8,1.09609]
[1743662601111,5.58543,1824.9,1824.5,3.2078]
[1743662601417,1.09621,1824.6,1824.5,1.09626]
[1743662602509,2.55881323,1824.7,1824.6,1.09621]
[1743662602714,1.46262323,1824.7,1824.6,1.09621]
[1743662602908,2.55877323,1824.7,1824.6,1.09621]
[1743662603108,2.55877323,1824.7,1824.6,2.54761]
[1743662605621,1.10437323,1824.7,1824.6,2.54761]
[1743662605920,0.00822323,1824.7,1824.6,5.75541]
[1743662606111,3.9063,1825.1,1825.0,1.09597]
[1743662606321,7.20251,1825.1,1825.0,1.09597]
[1743662606619,6.1066,1825.1,1825.0,1.09597]
[1743662607215,6.1066,1825.1,1825.0,2.54697]
[1743662608420,1.10407323,1825.2,1825.1,1.09591]
[1743662608626,1.10407323,1825.2,1825.1,2.49211]
[1743662608817,2.47737323,1825.2,1825.1,2.49211]
[1743662609815,3.18867323,1825.2,1825.1,2.49211]
[1743662619934,0.00822323,1825.2,1825.1,2.49211]
[1743662622239,1.09597,1825.0,1824.9,6.7668]
[1743662622438,1.09597,1825.0,1824.9,4.30379]
[1743662622632,1.09597,1825.0,1824.9,4.30383]
[1743662623042,1.83697,1825.0,1824.9,4.30383]
[1743662625048,1.83697,1825.0,1824.9,1.09603]
[1743662625237,1.09608,1824.9,1824.8,1.09605]
[1743662625430,3.22678,1824.9,1824.8,1.09605]
[1743662633452,1.09609,1824.8,1824.7,3.26682]
[1743662633647,2.74039,1824.7,1824.4,3.56622323]
[1743662633851,1.4266,1824.6,1824.5,1.09627]
[1743662634150,2.52281,1824.6,1824.5,2.60937]
[1743662636752,1.09627,1824.5,1824.4,0.00822323]
[1743662636956,3.28367,1824.5,1824.4,1.10455323]
[1743662638156,2.1874,1824.5,1824.4,1.10455323]
[1743662638355,2.1874,1824.5,1824.4,2.53265323]
[1743662638658,3.28367,1824.5,1824.4,2.53265323]
[1743662642351,3.28367,1824.5,1824.4,0.00822323]
[1743662642754,0.7273,1824.7,1824.4,1.10455323]
[1743662642954,1.09625,1824.6,1824.5,1.09627]
[1743662643155,1.09625,1824.6,1824.5,2.53037]
[1743662643450,2.47325,1824.6,1824.5,2.53037]
[1743662644051,0.6965,1824.7,1824.6,1.09621]
[1743662644258,1.09615,1824.8,1824.7,1.09612]
[1743662644560,1.09615,1824.8,1824.7,2.53022]
[1743662644750,2.53415,1824.8,1824.7,2.53022]
[1743662649163,0.692,1824.9,1824.8,1.09609]
[1743662649372,1.09609,1824.8,1824.7,1.09611]
[1743662649658,1.09615,1824.7,1824.6,1.83026]
[1743662649860,1.09627,1824.5,1824.4,1.10450323]
[1743662650069,2.50506,1824.6,1824.5,1.09627]
[1743662650864,1.09627,1824.5,1824.4,2.58373323]
[1743662651071,1.09627,1824.5,1824.4,1.48742323]
[1743662652068,2.52767,1824.5,1824.4,0.00822323]
[1743662653768,1.09645,1824.2,1824.1,3.2078]
[1743662654065,2.74096,1824.4,1823.9,4.0481]
[1743662654066,1.09656,1824.1,1823.9,4.0481]
[1743662654271,2.54786,1824.1,1823.9,4.0481]
[1743662655163,2.54786,1824.1,1824.0,1.4532]
[1743662658078,1.09657,1824.0,1823.8,4.31267323]
[1743662658268,2.54777,1824.0,1823.8,6.49997323]
[1743662658871,2.54777,1824.0,1823.9,1.09663]
[1743662659074,2.54777,1824.0,1823.9,2.53743]
[1743662659675,2.54777,1824.0,1823.9,1.4408]
[1743662660576,2.54777,1824.0,1823.9,2.53743]
[1743662661376,2.54777,1824.0,1823.9,1.4408]
[1743662662064,2.54777,1824.0,1823.8,0.75472323]
[1743662662065,1.09663,1823.9,1823.8,0.00822323]
[1743662662271,2.58373,1823.9,1823.8,0.00822323]
[1743662668280,5.79153,1823.9,1823.8,0.00822323]
[1743662670483,2.58373,1823.9,1823.8,0.00822323]
[1743662670682,5.79153,1823.9,1823.8,0.00822323]
[1743662681590,2.58373,1823.9,1823.8,0.00822323]
[1743662681983,2.58373,1823.9,1823.8,1.52692323]
[1743662682180,1.79304,1824.1,1824.0,1.09657]
[1743662682385,1.09654,1824.1,1824.0,1.09657]
[1743662682984,1.09654,1824.1,1824.0,2.61527]
[1743662685795,1.09654,1824.1,1824.0,1.5187]
[1743662686191,1.09657,1824.0,1823.9,1.4937]
[1743662686495,2.54117,1824.0,1823.9,2.9582]
[1743662687596,1.09657,1824.0,1823.9,4.05483]
[1743662688200,1.09657,1824.0,1823.9,2.9582]
[1743662688798,1.09657,1824.0,1823.9,4.05483]
[1743662689500,3.17653,1824.1,1824.0,1.09657]
[1743662689698,3.17653,1824.1,1824.0,1.5197]
[1743662691292,1.09653,1824.1,1824.0,1.5197]
[1743662691500,0.00822323,1824.2,1824.0,1.5197]
[1743662691801,1.09651,1824.1,1824.0,1.5197]
[1743662692493,2.57081,1824.1,1824.0,1.5197]
[1743662699395,2.57081,1824.1,1824.0,2.61627]
[1743662700205,2.57081,1824.1,1824.0,1.5197]
[1743662700506,2.57081,1824.1,1823.9,5.79809]
[1743662700507,1.09657,1824.0,1823.9,1.4937]
[1743662700799,1.09663,1823.9,1823.8,1.42542323]
[1743662700998,1.80593,1823.9,1823.8,1.42542323]
[1743662701307,3.19453,1823.9,1823.8,1.42542323]
[1743662701804,3.19453,1823.9,1823.8,0.00822323]
[1743662702606,6.40233,1823.9,1823.8,0.00822323]
[1743662705208,1.83142,1824.0,1823.9,1.09663]
[1743662705409,5.38942,1824.0,1823.9,0.718]
[1743662705705,1.09663,1823.9,1823.8,0.00822323]
[1743662705910,2.61353,1823.9,1823.8,0.00822323]
[1743662709414,1.09687,1823.5,1823.4,6.44143]
[1743662709707,1.09686,1823.6,1823.5,1.09683]
[1743662710806,1.09687,1823.5,1823.4,5.06052323]
[1743662711012,2.53197,1823.5,1823.4,5.06052323]
[1743662711603,0.7243,1823.8,1823.4,3.96362323]
[1743662711925,5.94954,1823.9,1823.8,1.09669]
[1743662711926,1.09668,1823.9,1823.8,1.09669]
[1743662712407,1.09668,1823.9,1823.8,2.60099]
[1743662712613,1.09654,1824.1,1824.0,1.09652]
[1743662713215,1.09657,1824.0,1823.9,4.3044]
[1743662714817,1.09656,1824.1,1824.0,1.09655]
[1743662715018,2.60372323,1824.2,1824.1,1.09651]
[1743662715615,0.00822323,1824.2,1824.1,4.30431]
[1743662715913,1.09625,1824.6,1824.5,1.09627]
[1743662717717,1.09627,1824.5,1824.4,4.31231323]
[1743662718213,1.09626,1824.6,1824.5,1.09625]
[1743662719015,1.09627,1824.5,1824.4,4.31235323]
[1743662719209,2.55287,1824.5,1824.4,0.00822323]
[1743662719814,3.27287,1824.5,1824.4,1.10455323]
[1743662720313,3.27287,1824.5,1824.4,0.00822323]
[1743662721312,3.27287,1824.5,1824.4,1.10455323]
[1743662721612,3.27287,1824.5,1824.4,0.00822323]
[1743662724121,2.55287,1824.5,1824.4,1.10455323]
[1743662724818,2.55287,1824.5,1824.4,0.71612323]
[1743662725014,2.55287,1824.5,1824.4,2.18692323]
[1743662725216,2.55287,1824.5,1824.4,0.00822323]
[1743662725811,2.55287,1824.5,1824.4,1.10455323]
[1743662726125,2.55287,1824.5,1824.4,2.57535323]
[1743662726619,2.55287,1824.5,1824.4,3.26615323]
[1743662728219,2.55287,1824.5,1824.4,2.57535323]
[1743662731021,1.09627,1824.5,1824.4,2.57535323]
[1743662732820,2.57957,1824.5,1824.4,2.57535323]
[1743662733923,1.4833,1824.5,1824.4,2.57535323]
[1743662734123,2.57957,1824.5,1824.4,2.57535323]
[1743662735418,2.57957,1824.5,1824.4,1.47902323]
[1743662735624,3.28567,1824.5,1824.4,0.00822323]
[1743662745341,1.09651,1824.1,1824.0,3.2078]
[1743662745541,1.09669,1823.8,1823.7,9.97411]
[1743662746242,1.09669,1823.8,1823.7,6.41711]
[1743662747635,1.09675,1823.7,1823.6,0.00822323]
[1743662747839,2.53795,1823.7,1823.6,0.00822323]
[1743662749835,2.53795,1823.7,1823.3,2.1518]
[1743662749836,1.09693,1823.4,1823.3,1.4061]
[1743662750241,1.09712,1823.1,1823.0,4.2971]
[1743662750541,2.74281,1823.1,1822.7,1.84305]
[1743662750840,1.0973,1822.8,1822.7,2.1518]
[1743662751035,1.09736,1822.7,1822.6,3.2078]
[1743662751238,1.09736,1822.7,1822.6,3.21602323]
[1743662752335,1.09736,1822.7,1822.6,4.31344323]
[1743662752545,1.09736,1822.7,1822.6,3.21602323]
[1743662753136,1.09736,1822.7,1822.6,4.31344323]
[1743662753334,1.42,1822.8,1822.6,4.31344323]
[1743662753541,1.09736,1822.7,1822.6,4.31344323]
[1743662754444,1.09736,1822.7,1822.6,3.21602323]
[1743662755145,1.09736,1822.7,1822.6,0.00822323]
[1743662755344,4.30516,1822.7,1822.6,0.00822323]
[1743662755739,7.86316,1822.7,1822.6,0.00822323]
[1743662755934,1.0976,1822.3,1822.2,2.1309]
[1743662756240,5.95172,1822.4,1821.9,4.9959]
[1743662756446,1.09778,1822.1,1821.9,6.4176]
[1743662756840,1.3736,1822.1,1822.0,1.09778]
[1743662757045,1.3736,1822.1,1822.0,2.51948]
[1743662757350,2.47132,1822.1,1822.0,1.4217]
[1743662759541,2.47132,1822.1,1822.0,2.51948]
[1743662761147,2.55658323,1822.2,1822.1,1.09772]
[1743662761848,0.00822323,1822.2,1822.1,4.30552]
[1743662762442,0.00822323,1822.2,1822.1,6.80552]
[1743662762848,3.2078,1822.9,1822.1,5.7078]
[1743662763051,2.50196,1823.1,1823.0,1.09718]
[1743662763237,1.09718,1823.0,1822.9,2.57999]
[1743662763644,4.01493,1823.1,1823.0,1.09718]
[1743662763950,2.61012,1823.1,1823.0,1.09718]
[1743662764946,1.513,1823.1,1823.0,1.09718]
[1743662765250,1.10532323,1823.2,1823.1,1.09712]
[1743662765450,2.50692323,1823.2,1823.1,1.09712]
[1743662765750,1.40982323,1823.2,1823.1,1.09712]
[1743662766250,2.50688323,1823.2,1823.1,1.09712]
[1743662768851,1.40982323,1823.2,1823.1,1.09712]
[1743662769152,0.00822323,1823.2,1823.1,1.09712]
[1743662769343,0.00822323,1823.2,1823.1,2.50772]
[1743662770049,2.59178323,1823.2,1823.1,1.09712]
[1743662770249,2.59178323,1823.2,1823.1,2.51392]
[1743662771155,1.09712,1823.1,1823.0,4.30494]
[1743662771457,1.4865,1823.1,1823.0,4.30494]
[1743662771654,2.58362,1823.1,1823.0,4.30494]
[1743662773461,1.10531323,1823.2,1823.1,1.09712]
[1743662773659,1.10531323,1823.2,1823.1,2.55662]
[1743662776362,1.10531323,1823.2,1822.9,8.70197323]
[1743662776363,1.09718,1823.1,1823.0,1.09713]
[1743662776560,2.58928,1823.1,1823.0,2.56453]
[1743662779265,0.00822323,1823.2,1823.1,1.09712]
[1743662779570,1.09685,1823.6,1823.5,1.09687]
[1743662779753,1.4084,1823.7,1823.6,1.09681]
[1743662779956,2.50515,1823.7,1823.6,1.09681]
[1743662780158,2.50515,1823.7,1823.6,2.61511]
[1743662780765,1.83635323,1823.8,1823.7,1.09675]
[1743662780961,3.24475323,1823.8,1823.7,1.09675]
[1743662781563,1.41662323,1823.8,1823.7,1.09675]
[1743662781763,0.00822323,1823.8,1823.7,1.09675]
[1743662782261,1.10491323,1823.8,1823.7,1.09675]
[1743662782562,2.52191323,1823.8,1823.7,1.09675]
[1743662782766,1.09675,1823.7,1823.5,3.9589]
[1743662782967,1.09681,1823.6,1823.5,5.05573]
[1743662783468,1.09681,1823.6,1823.5,6.44813]
[1743662783665,2.51381,1823.6,1823.5,6.44813]
[1743662783968,1.417,1823.6,1823.5,6.44813]
[1743662785170,2.51381,1823.6,1823.5,6.44813]
[1743662785663,1.417,1823.6,1823.5,4.30463]
[1743662787166,0.6991,1823.7,1823.6,1.09681]
[1743662787368,1.10492323,1823.8,1823.7,1.09675]
[1743662787571,1.10492323,1823.8,1823.7,4.30455]
[1743662787770,2.56252323,1823.8,1823.7,4.30455]
[1743662787967,2.56252323,1823.8,1823.7,3.2078]
[1743662789071,2.56252323,1823.8,1823.7,4.30455]
[1743662789774,1.09681,1823.6,1823.5,4.30462]
[1743662790971,1.79401,1823.6,1823.5,4.30462]
[1743662794563,1.79401,1823.6,1823.5,3.2078]
[1743662796468,1.79401,1823.6,1823.5,4.30467]
[1743662797069,2.74219,1823.5,1822.9,0.00822323]
[1743662797270,2.74249,1823.3,1822.9,0.00822323]
[1743662797573,1.09718,1823.0,1822.9,2.56731323]
[1743662798475,2.48438,1823.0,1822.9,2.56731323]
[1743662798672,0.7591,1823.2,1822.9,1.47012323]
[1743662798878,1.09707,1823.3,1823.2,1.09703]
[1743662800878,1.09707,1823.3,1823.2,2.54253]
[1743662801375,1.09706,1823.2,1823.0,3.2078]
[1743662801581,1.09712,1823.1,1823.0,4.30494]
[1743662802077,2.50992,1823.1,1823.0,4.30494]
[1743662803179,1.09718,1823.0,1822.9,0.00822323]
[1743662803376,2.55138,1823.0,1822.9,0.00822323]
[1743662803770,1.09748,1822.5,1822.4,3.2078]
[1743662803973,1.09748,1822.5,1822.4,5.81969]
[1743662804275,1.09748,1822.5,1822.4,5.81971]
[1743662804974,1.09748,1822.5,1822.4,3.2078]
[1743662805171,1.09754,1822.4,1822.3,0.00822323]
[1743662805367,2.55174,1822.4,1822.3,0.00822323]
[1743662811084,1.4542,1822.4,1822.3,1.10582323]
[1743662811388,1.09754,1822.4,1822.3,3.21602323]
[1743662811777,1.09754,1822.4,1822.3,4.31357323]
[1743662813687,1.09754,1822.4,1822.3,4.31362323]
[1743662814091,1.09754,1822.4,1822.3,3.21602323]
[1743662814291,1.09754,1822.4,1822.3,4.31362323]
[1743662814985,1.09754,1822.4,1822.3,3.21602323]
[1743662815877,1.09754,1822.4,1822.3,0.00822323]
[1743662816977,1.09754,1822.4,1822.3,1.10582323]
[1743662817180,5.95958323,1822.6,1822.3,4.70652323]
[1743662817181,0.00822323,1822.6,1822.3,4.70652323]
[1743662817384,0.00822323,1822.6,1822.5,4.30528]
[1743662817781,0.00822323,1822.6,1822.5,5.79578]
[1743662818475,1.10564323,1822.6,1822.5,5.79578]
[1743662819685,1.10564323,1822.6,1822.5,2.58798]
[1743662820289,2.59404323,1822.6,1822.5,2.58798]
[1743662824791,2.59404323,1822.6,1822.5,1.09748]
[1743662824985,1.09753,1822.5,1822.4,1.09748]
[1743662825290,2.52213,1822.5,1822.4,1.09748]
[1743662825491,2.52213,1822.5,1822.4,2.58058]
[1743662826587,2.52213,1822.5,1822.4,5.78838]
[1743662826983,1.09754,1822.4,1822.3,0.00822323]
[1743662827188,3.27234,1822.4,1822.3,1.10582323]
[1743662827489,3.27234,1822.4,1822.3,0.00822323]
[1743662827691,3.27234,1822.4,1822.3,1.10582323]
[1743662829999,3.27234,1822.4,1822.3,2.61692323]
[1743662830198,3.27234,1822.4,1822.3,1.10582323]
[1743662830495,3.27234,1822.4,1822.3,0.00822323]
[1743662830886,6.83034,1822.4,1822.3,0.00822323]
[1743662836397,1.09772,1822.1,1822.0,4.30553]
[1743662836598,5.95201,1822.2,1821.8,6.0209]
[1743662836799,1.09784,1821.9,1821.8,6.39313]
[1743662837301,1.09784,1821.9,1821.8,5.70553]
[1743662837503,1.09784,1821.9,1821.8,4.6077]
[1743662837703,2.47234,1821.9,1821.8,5.7056]
[1743662838999,2.47234,1821.9,1821.8,4.3057]